[Event "*** SCC Grand Prix: Titled Tuesday Blitz"]
[Site "Chess.com"]
[Date "2020.10.13"]
[Round "4"]
[White "BeanScreen"]
[Black "nochewycandy"]
[Result "1-0"]
[WhiteElo "2733"]
[BlackElo "2552"]
[TimeControl "180+1"]
[EndTime "10:39:36 PDT"]
[Termination "BeanScreen won by resignation"]

1. e4 {[%clk 0:03:00]} 1... Nf6 {[%clk 0:02:56.1]} 2. e5 {[%clk 0:03:00.4]} 2...
Nd5 {[%clk 0:02:56]} 3. d4 {[%clk 0:03:01.3]} 3... d6 {[%clk 0:02:56.3]} 4. Nf3
{[%clk 0:03:02.2]} 4... dxe5 {[%clk 0:02:56.6]} 5. Nxe5 {[%clk 0:03:03.1]} 5...
c6 {[%clk 0:02:57.1]} 6. Bc4 {[%clk 0:03:02.7]} 6... Bf5 {[%clk 0:02:57.6]} 7.
O-O {[%clk 0:03:02.1]} 7... Nd7 {[%clk 0:02:56.3]} 8. Nf3 {[%clk 0:03:02.2]}
8... e6 {[%clk 0:02:55.9]} 9. c3 {[%clk 0:02:58.1]} 9... Be7 {[%clk 0:02:55.1]}
10. Re1 {[%clk 0:02:57.8]} 10... O-O {[%clk 0:02:54]} 11. Nbd2 {[%clk
0:02:58.2]} 11... c5 {[%clk 0:02:45.1]} 12. Bxd5 {[%clk 0:02:54.6]} 12... exd5
{[%clk 0:02:44.4]} 13. dxc5 {[%clk 0:02:55]} 13... Nxc5 {[%clk 0:02:42.8]} 14.
Nb3 {[%clk 0:02:46.4]} 14... Nd3 {[%clk 0:02:40.3]} 15. Re3 {[%clk 0:02:25.6]}
15... Nxc1 {[%clk 0:02:39.3]} 16. Rxc1 {[%clk 0:02:26.5]} 16... Bg4 {[%clk
0:02:28.6]} 17. Rd3 {[%clk 0:02:20.1]} 17... Qb6 {[%clk 0:01:51.8]} 18. h3
{[%clk 0:02:07.8]} 18... Be6 {[%clk 0:01:47.6]} 19. Qd2 {[%clk 0:02:01.3]} 19...
Rad8 {[%clk 0:01:40.2]} 20. Nbd4 {[%clk 0:02:01.2]} 20... Bf6 {[%clk 0:01:35.8]}
21. Re1 {[%clk 0:02:00.6]} 21... Rfe8 {[%clk 0:01:34.3]} 22. Rde3 {[%clk
0:02:00.5]} 22... Bd7 {[%clk 0:01:31]} 23. Rxe8+ {[%clk 0:01:59.4]} 23... Rxe8
{[%clk 0:01:31.9]} 24. Rxe8+ {[%clk 0:01:59.5]} 24... Bxe8 {[%clk 0:01:32.8]}
25. Qe3 {[%clk 0:01:48]} 25... Kf8 {[%clk 0:01:24]} 26. Ng5 {[%clk 0:01:30.9]}
26... Bxg5 {[%clk 0:01:02.2]} 27. Qxg5 {[%clk 0:01:31.7]} 27... g6 {[%clk
0:00:19.4]} 28. b4 {[%clk 0:01:24.4]} 28... Qd6 {[%clk 0:00:18.8]} 29. h4 {[%clk
0:01:10.7]} 29... Bd7 {[%clk 0:00:18.3]} 30. h5 {[%clk 0:01:10.2]} 30... Qe7
{[%clk 0:00:14.4]} 31. Qf4 {[%clk 0:01:05.7]} 31... g5 {[%clk 0:00:13.3]} 32.
Qb8+ {[%clk 0:01:02.2]} 32... Kg7 {[%clk 0:00:13.7]} 33. Qc7 {[%clk 0:00:38.8]}
33... Kf6 {[%clk 0:00:05.5]} 34. Nf3 {[%clk 0:00:28.4]} 34... h6 {[%clk
0:00:05.6]} 35. Qxb7 {[%clk 0:00:27.9]} 35... Bg4 {[%clk 0:00:03.7]} 36. Qxe7+
{[%clk 0:00:25]} 36... Kxe7 {[%clk 0:00:04.6]} 37. Nd4 {[%clk 0:00:23.8]} 37...
Bxh5 {[%clk 0:00:04.9]} 38. Nc6+ {[%clk 0:00:24.2]} 38... Kd6 {[%clk 0:00:05.2]}
39. Nxa7 {[%clk 0:00:21.4]} 39... Be2 {[%clk 0:00:05.3]} 40. a4 {[%clk
0:00:20.1]} 40... Kc7 {[%clk 0:00:05]} 41. Nb5+ {[%clk 0:00:20]} 41... Kc6
{[%clk 0:00:04.9]} 42. Nd4+ {[%clk 0:00:20.5]} 42... Kd6 {[%clk 0:00:05.5]} 43.
Nxe2 {[%clk 0:00:21.4]} 1-0

[Event "*** SCC Grand Prix: Titled Tuesday Blitz"]
[Site "Chess.com"]
[Date "2020.10.13"]
[Round "4"]
[White "ENajer77"]
[Black "FloMasterAAK"]
[Result "0-1"]
[WhiteElo "2692"]
[BlackElo "2550"]
[TimeControl "180+1"]
[EndTime "10:39:36 PDT"]
[Termination "FloMasterAAK won on time"]

1. e4 {[%clk 0:02:06.1]} 1... e5 {[%clk 0:02:59.2]} 2. Nf3 {[%clk 0:02:04.8]}
2... Nc6 {[%clk 0:02:59.1]} 3. Bb5 {[%clk 0:02:04]} 3... a6 {[%clk 0:02:58.2]}
4. Ba4 {[%clk 0:02:04]} 4... Nf6 {[%clk 0:02:57.8]} 5. O-O {[%clk 0:02:03]} 5...
Bc5 {[%clk 0:02:57.7]} 6. c3 {[%clk 0:02:02.4]} 6... d6 {[%clk 0:02:56.4]} 7. d4
{[%clk 0:02:01.6]} 7... exd4 {[%clk 0:02:49.8]} 8. cxd4 {[%clk 0:02:02.5]} 8...
Ba7 {[%clk 0:02:49.9]} 9. d5 {[%clk 0:01:58.7]} 9... b5 {[%clk 0:02:49.2]} 10.
dxc6 {[%clk 0:01:47.2]} 10... bxa4 {[%clk 0:02:48.5]} 11. Qxa4 {[%clk
0:01:48.1]} 11... Bg4 {[%clk 0:02:32.4]} 12. Nd4 {[%clk 0:01:19]} 12... O-O
{[%clk 0:02:14.8]} 13. Nc3 {[%clk 0:01:18.3]} 13... Qe8 {[%clk 0:02:11]} 14. f3
{[%clk 0:01:04.3]} 14... Qe5 {[%clk 0:01:59.1]} 15. Be3 {[%clk 0:01:03.3]} 15...
d5 {[%clk 0:01:45.7]} 16. Rae1 {[%clk 0:00:51.3]} 16... Bc8 {[%clk 0:01:38.1]}
17. exd5 {[%clk 0:00:40.6]} 17... Nxd5 {[%clk 0:01:39]} 18. Bf2 {[%clk
0:00:40.2]} 18... Qd6 {[%clk 0:01:30.3]} 19. Ne4 {[%clk 0:00:37.4]} 19... Qg6
{[%clk 0:01:26.8]} 20. Kh1 {[%clk 0:00:24.1]} 20... Nf4 {[%clk 0:01:26.3]} 21.
Bg3 {[%clk 0:00:20.5]} 21... Nh5 {[%clk 0:01:22.3]} 22. Bxc7 {[%clk 0:00:18.8]}
22... a5 {[%clk 0:00:53.2]} 23. Bd6 {[%clk 0:00:16.1]} 23... Re8 {[%clk
0:00:44.6]} 24. c7 {[%clk 0:00:15.1]} 24... Ba6 {[%clk 0:00:43.2]} 25. Nb5
{[%clk 0:00:14.7]} 25... f5 {[%clk 0:00:32.8]} 26. Nec3 {[%clk 0:00:10.2]} 26...
Rxe1 {[%clk 0:00:25.6]} 27. Rxe1 {[%clk 0:00:10.2]} 27... Re8 {[%clk 0:00:26.5]}
28. Rxe8+ {[%clk 0:00:05.5]} 28... Qxe8 {[%clk 0:00:27.4]} 29. Qc4+ {[%clk
0:00:06.1]} 29... Kh8 {[%clk 0:00:26.9]} 30. Qe2 {[%clk 0:00:04.9]} 30... Qc6
{[%clk 0:00:18.6]} 31. Qe7 {[%clk 0:00:04.3]} 31... Nf6 {[%clk 0:00:12.5]} 32.
Qd8+ {[%clk 0:00:02.8]} 32... Ng8 {[%clk 0:00:12]} 33. a4 {[%clk 0:00:02.5]}
33... Qb6 {[%clk 0:00:09]} 0-1

[Event "*** SCC Grand Prix: Titled Tuesday Blitz"]
[Site "Chess.com"]
[Date "2020.10.13"]
[Round "4"]
[White "tornikesanikidze"]
[Black "karinachess1"]
[Result "1-0"]
[WhiteElo "2670"]
[BlackElo "2508"]
[TimeControl "180+1"]
[EndTime "10:39:37 PDT"]
[Termination "tornikesanikidze won by checkmate"]

1. d4 {[%clk 0:03:00.9]} 1... Nf6 {[%clk 0:02:58.1]} 2. c4 {[%clk 0:03:00.9]}
2... e6 {[%clk 0:02:54]} 3. Nf3 {[%clk 0:03:00.9]} 3... d5 {[%clk 0:02:53.5]} 4.
Nc3 {[%clk 0:03:00.7]} 4... Be7 {[%clk 0:02:53.2]} 5. Bg5 {[%clk 0:02:59.9]}
5... O-O {[%clk 0:02:52.5]} 6. e3 {[%clk 0:02:59.6]} 6... h6 {[%clk 0:02:52.5]}
7. Bxf6 {[%clk 0:02:59.6]} 7... Bxf6 {[%clk 0:02:52.9]} 8. Qd2 {[%clk 0:03:00]}
8... c5 {[%clk 0:02:39.5]} 9. cxd5 {[%clk 0:02:53.6]} 9... cxd4 {[%clk
0:02:32.6]} 10. Nxd4 {[%clk 0:02:53.4]} 10... exd5 {[%clk 0:02:31]} 11. Bb5
{[%clk 0:02:53.8]} 11... a6 {[%clk 0:02:28.4]} 12. Ba4 {[%clk 0:02:53.7]} 12...
Qd6 {[%clk 0:02:18.2]} 13. Rc1 {[%clk 0:02:49.9]} 13... Nc6 {[%clk 0:02:13.4]}
14. Nxc6 {[%clk 0:02:44]} 14... bxc6 {[%clk 0:02:14.3]} 15. Ne4 {[%clk
0:02:44.4]} 15... Qe7 {[%clk 0:01:58.8]} 16. Nxf6+ {[%clk 0:02:44.2]} 16... Qxf6
{[%clk 0:01:59.7]} 17. Rxc6 {[%clk 0:02:44.3]} 17... Qg5 {[%clk 0:01:57.9]} 18.
f4 {[%clk 0:02:43.1]} 18... Qh4+ {[%clk 0:01:56.5]} 19. g3 {[%clk 0:02:43.1]}
19... Qe7 {[%clk 0:01:51.2]} 20. O-O {[%clk 0:02:37.1]} 20... Bd7 {[%clk
0:01:50.2]} 21. Rc7 {[%clk 0:02:33.8]} 21... Rad8 {[%clk 0:01:35]} 22. Qd4
{[%clk 0:02:24.5]} 22... Qd6 {[%clk 0:01:29.1]} 23. Rxd7 {[%clk 0:02:24]} 23...
Rxd7 {[%clk 0:01:30]} 24. Bxd7 {[%clk 0:02:24.2]} 24... Qxd7 {[%clk 0:01:30.5]}
25. e4 {[%clk 0:02:22.1]} 25... Rd8 {[%clk 0:01:24.6]} 26. Rd1 {[%clk
0:02:21.9]} 26... h5 {[%clk 0:01:16.2]} 27. exd5 {[%clk 0:02:18.5]} 27... h4
{[%clk 0:01:16]} 28. d6 {[%clk 0:02:14.5]} 28... Qg4 {[%clk 0:01:05]} 29. Rd3
{[%clk 0:01:58.6]} 29... Qe2 {[%clk 0:00:57.5]} 30. Rd2 {[%clk 0:01:39.3]} 30...
Qe1+ {[%clk 0:00:46]} 31. Kg2 {[%clk 0:01:38.6]} 31... Qe6 {[%clk 0:00:36.4]}
32. d7 {[%clk 0:01:19.2]} 32... h3+ {[%clk 0:00:35.9]} 33. Kf2 {[%clk
0:01:14.1]} 33... Qc6 {[%clk 0:00:33.4]} 34. Qd5 {[%clk 0:01:05.4]} 34... Qb6+
{[%clk 0:00:27.7]} 35. Kf3 {[%clk 0:01:04.5]} 35... Qf6 {[%clk 0:00:17.4]} 36.
b4 {[%clk 0:00:52.6]} 36... g6 {[%clk 0:00:16.3]} 37. a4 {[%clk 0:00:36.4]}
37... Qc3+ {[%clk 0:00:16.2]} 38. Kg4 {[%clk 0:00:33]} 38... Qxb4 {[%clk
0:00:17.1]} 39. Re2 {[%clk 0:00:25.8]} 39... Qb6 {[%clk 0:00:12.7]} 40. Re8+
{[%clk 0:00:23.1]} 40... Kg7 {[%clk 0:00:10.7]} 41. Qe5+ {[%clk 0:00:23.2]}
41... f6 {[%clk 0:00:10.5]} 42. Qe7+ {[%clk 0:00:19.1]} 42... Kh6 {[%clk
0:00:10.6]} 43. Qf8+ {[%clk 0:00:16.3]} 43... Kh7 {[%clk 0:00:09.4]} 44. Qh8#
{[%clk 0:00:15.6]} 1-0

[Event "*** SCC Grand Prix: Titled Tuesday Blitz"]
[Site "Chess.com"]
[Date "2020.10.13"]
[Round "4"]
[White "ExcitingTrap"]
[Black "maximnovik"]
[Result "0-1"]
[WhiteElo "2296"]
[BlackElo "2541"]
[TimeControl "180+1"]
[EndTime "10:39:40 PDT"]
[Termination "maximnovik won by resignation"]

1. e4 {[%clk 0:03:00.9]} 1... c6 {[%clk 0:02:43]} 2. d4 {[%clk 0:03:00.3]} 2...
d5 {[%clk 0:02:42.9]} 3. e5 {[%clk 0:03:00.3]} 3... Bf5 {[%clk 0:02:42.5]} 4. h4
{[%clk 0:03:00.2]} 4... h6 {[%clk 0:02:41.7]} 5. g4 {[%clk 0:02:59.7]} 5... Bd7
{[%clk 0:02:42.1]} 6. Bd3 {[%clk 0:02:54.2]} 6... c5 {[%clk 0:02:41.9]} 7. c3
{[%clk 0:02:53.6]} 7... Nc6 {[%clk 0:02:42.1]} 8. Be3 {[%clk 0:02:46.9]} 8...
Qb6 {[%clk 0:02:39.8]} 9. f3 {[%clk 0:02:05.2]} 9... Qxb2 {[%clk 0:02:25.5]} 10.
Qb3 {[%clk 0:01:59.2]} 10... Qxa1 {[%clk 0:02:12.3]} 11. dxc5 {[%clk 0:01:48.5]}
11... Nxe5 {[%clk 0:01:59.1]} 12. Bc2 {[%clk 0:01:24.7]} 12... Nf6 {[%clk
0:01:51.1]} 13. Bc1 {[%clk 0:01:17.2]} 13... Nc4 {[%clk 0:01:29.5]} 14. Ne2
{[%clk 0:01:15.1]} 14... e6 {[%clk 0:01:28.8]} 15. O-O {[%clk 0:00:27.4]} 15...
Bxc5+ {[%clk 0:01:27.6]} 16. Kg2 {[%clk 0:00:28]} 16... b5 {[%clk 0:01:21.6]}
17. Nf4 {[%clk 0:00:24.6]} 17... Na5 {[%clk 0:01:19.1]} 18. Qb2 {[%clk 0:00:21]}
18... Qxb2 {[%clk 0:01:18.5]} 19. Bxb2 {[%clk 0:00:21.9]} 19... Nc4 {[%clk
0:01:18.4]} 20. Bc1 {[%clk 0:00:22]} 20... g5 {[%clk 0:01:11.5]} 21. hxg5 {[%clk
0:00:20.2]} 21... hxg5 {[%clk 0:01:10.6]} 22. Nh3 {[%clk 0:00:20.8]} 22... Be3
{[%clk 0:01:10.1]} 23. Nxg5 {[%clk 0:00:19.2]} 23... Bxc1 {[%clk 0:01:06.4]} 24.
Rxc1 {[%clk 0:00:20.1]} 24... Bc6 {[%clk 0:00:55.3]} 25. Bd3 {[%clk 0:00:18.7]}
25... Ke7 {[%clk 0:00:48.4]} 26. Kg3 {[%clk 0:00:17.1]} 26... Rag8 {[%clk
0:00:47.3]} 27. Nh3 {[%clk 0:00:16.8]} 27... Ne5 {[%clk 0:00:43.9]} 28. Be2
{[%clk 0:00:15.9]} 28... Nh5+ {[%clk 0:00:32.6]} 29. Kg2 {[%clk 0:00:15.3]}
29... Nf6 {[%clk 0:00:31.4]} 30. Kg3 {[%clk 0:00:15]} 30... Ng6 {[%clk
0:00:30.7]} 31. Nd2 {[%clk 0:00:14.2]} 31... e5 {[%clk 0:00:30.4]} 32. Nb3
{[%clk 0:00:13.5]} 32... e4 {[%clk 0:00:29.1]} 33. f4 {[%clk 0:00:13.9]} 33...
Nh4 {[%clk 0:00:27.6]} 34. Nd4 {[%clk 0:00:13.4]} 34... Bd7 {[%clk 0:00:27.9]}
35. Ng5 {[%clk 0:00:12.4]} 35... Ng6 {[%clk 0:00:25.3]} 36. f5 {[%clk
0:00:09.3]} 36... Ne5 {[%clk 0:00:24.9]} 37. Nh3 {[%clk 0:00:09]} 37... Nexg4
{[%clk 0:00:24.6]} 38. Nf4 {[%clk 0:00:08.2]} 38... Ne5+ {[%clk 0:00:24.2]} 39.
Kf2 {[%clk 0:00:08.5]} 39... Rh2+ {[%clk 0:00:24.2]} 40. Ke1 {[%clk 0:00:07.3]}
40... Rg1+ {[%clk 0:00:23.8]} 41. Kd2 {[%clk 0:00:07.1]} 41... Rxc1 {[%clk
0:00:23.7]} 42. Kxc1 {[%clk 0:00:08]} 42... a5 {[%clk 0:00:19.7]} 0-1

[Event "*** SCC Grand Prix: Titled Tuesday Blitz"]
[Site "Chess.com"]
[Date "2020.10.13"]
[Round "4"]
[White "AndreyNeves"]
[Black "boasovietica"]
[Result "1-0"]
[WhiteElo "2272"]
[BlackElo "2408"]
[TimeControl "180+1"]
[EndTime "10:39:43 PDT"]
[Termination "AndreyNeves won by resignation"]

1. d4 {[%clk 0:03:00.9]} 1... Nf6 {[%clk 0:02:54.9]} 2. c4 {[%clk 0:03:00.1]}
2... g6 {[%clk 0:02:54.8]} 3. g3 {[%clk 0:02:59.7]} 3... Bg7 {[%clk 0:02:55.1]}
4. Bg2 {[%clk 0:02:59.5]} 4... O-O {[%clk 0:02:55.4]} 5. Nf3 {[%clk 0:02:59.3]}
5... c5 {[%clk 0:02:55.2]} 6. d5 {[%clk 0:02:58.5]} 6... e6 {[%clk 0:02:55.1]}
7. Nc3 {[%clk 0:02:57.8]} 7... exd5 {[%clk 0:02:54.4]} 8. cxd5 {[%clk
0:02:57.7]} 8... d6 {[%clk 0:02:53.7]} 9. O-O {[%clk 0:02:58.2]} 9... a6 {[%clk
0:02:51.3]} 10. a4 {[%clk 0:02:57.5]} 10... Nbd7 {[%clk 0:02:50]} 11. Nd2 {[%clk
0:02:56.9]} 11... Re8 {[%clk 0:02:48.9]} 12. Nc4 {[%clk 0:02:49.8]} 12... Ne5
{[%clk 0:02:44.4]} 13. Ne3 {[%clk 0:02:49.3]} 13... Rb8 {[%clk 0:02:31]} 14. a5
{[%clk 0:02:32.9]} 14... Bd7 {[%clk 0:02:22.9]} 15. h3 {[%clk 0:02:16.2]} 15...
Bb5 {[%clk 0:02:17.9]} 16. f4 {[%clk 0:02:09.4]} 16... Nc4 {[%clk 0:01:44.3]}
17. Nxc4 {[%clk 0:02:09.1]} 17... Bxc4 {[%clk 0:01:44.5]} 18. Re1 {[%clk
0:02:09.4]} 18... b5 {[%clk 0:01:24.2]} 19. axb6 {[%clk 0:02:07.2]} 19... Qxb6
{[%clk 0:01:21.4]} 20. e4 {[%clk 0:02:07.3]} 20... Rb7 {[%clk 0:00:50.5]} 21.
Kh2 {[%clk 0:02:03.5]} 21... Rbe7 {[%clk 0:00:49.9]} 22. g4 {[%clk 0:01:52.7]}
22... h5 {[%clk 0:00:49]} 23. g5 {[%clk 0:01:50.8]} 23... Nd7 {[%clk 0:00:48.5]}
24. Qf3 {[%clk 0:01:41]} 24... Bxc3 {[%clk 0:00:38.4]} 25. bxc3 {[%clk
0:01:38.1]} 25... Bxd5 {[%clk 0:00:37.2]} 26. Qd3 {[%clk 0:01:17.8]} 26... Bb7
{[%clk 0:00:18.5]} 27. Rb1 {[%clk 0:01:17.5]} 27... Qc6 {[%clk 0:00:16.3]} 28.
c4 {[%clk 0:01:11.2]} 28... Qc7 {[%clk 0:00:02.2]} 29. Bb2 {[%clk 0:01:05.4]}
29... f6 {[%clk 0:00:02]} 30. gxf6 {[%clk 0:01:01.1]} 30... Rf7 {[%clk
0:00:02.2]} 31. e5 {[%clk 0:00:50.1]} 31... Bxg2 {[%clk 0:00:03.1]} 32. Kxg2
{[%clk 0:00:48.5]} 32... dxe5 {[%clk 0:00:03.4]} 33. fxe5 {[%clk 0:00:46.5]}
33... Nxe5 {[%clk 0:00:03.7]} 34. Bxe5 {[%clk 0:00:44.5]} 34... Rxe5 {[%clk
0:00:03.6]} 35. Qxg6+ {[%clk 0:00:43.4]} 35... Kf8 {[%clk 0:00:03.4]} 36. Rxe5
{[%clk 0:00:25.9]} 36... Qxe5 {[%clk 0:00:04.3]} 37. Rf1 {[%clk 0:00:23.9]}
37... Qe2+ {[%clk 0:00:03.9]} 38. Rf2 {[%clk 0:00:22.6]} 38... Qe5 {[%clk
0:00:03.9]} 39. Qf5 {[%clk 0:00:20.3]} 39... Qxf5 {[%clk 0:00:03.6]} 40. Rxf5
{[%clk 0:00:19.7]} 40... Rc7 {[%clk 0:00:04.2]} 41. Rxh5 {[%clk 0:00:18.2]}
41... a5 {[%clk 0:00:03.9]} 42. Rh8+ {[%clk 0:00:17.2]} 42... Kf7 {[%clk
0:00:04.4]} 43. Rh7+ {[%clk 0:00:17.3]} 1-0

[Event "*** SCC Grand Prix: Titled Tuesday Blitz"]
[Site "Chess.com"]
[Date "2020.10.13"]
[Round "4"]
[White "margarita_2703"]
[Black "tylityli"]
[Result "0-1"]
[WhiteElo "2385"]
[BlackElo "2218"]
[TimeControl "180+1"]
[EndTime "10:39:43 PDT"]
[Termination "tylityli won by resignation"]

1. Nf3 {[%clk 0:03:00.7]} 1... Nf6 {[%clk 0:02:58.1]} 2. c4 {[%clk 0:02:59.4]}
2... c5 {[%clk 0:02:55.3]} 3. Nc3 {[%clk 0:02:58.5]} 3... d5 {[%clk 0:02:53.8]}
4. d4 {[%clk 0:02:57.3]} 4... cxd4 {[%clk 0:02:52.6]} 5. Nxd4 {[%clk 0:02:56.1]}
5... e5 {[%clk 0:02:47.4]} 6. Nf3 {[%clk 0:02:45.8]} 6... d4 {[%clk 0:02:46.3]}
7. Nb1 {[%clk 0:02:25.8]} 7... Nc6 {[%clk 0:02:44]} 8. e3 {[%clk 0:02:18]} 8...
Bb4+ {[%clk 0:02:42.3]} 9. Bd2 {[%clk 0:02:15.4]} 9... dxe3 {[%clk 0:02:41.5]}
10. fxe3 {[%clk 0:02:12.7]} 10... O-O {[%clk 0:02:37.9]} 11. Bxb4 {[%clk
0:02:03.3]} 11... Nxb4 {[%clk 0:02:17.5]} 12. a3 {[%clk 0:01:33.9]} 12... Nc6
{[%clk 0:02:12.8]} 13. Qxd8 {[%clk 0:01:29]} 13... Rxd8 {[%clk 0:02:11.5]} 14.
Nc3 {[%clk 0:01:29.1]} 14... a5 {[%clk 0:02:08.9]} 15. Be2 {[%clk 0:01:24]}
15... e4 {[%clk 0:02:07.5]} 16. Nd2 {[%clk 0:01:15.8]} 16... Bf5 {[%clk
0:02:06]} 17. Rf1 {[%clk 0:01:11.8]} 17... Bg6 {[%clk 0:02:05.8]} 18. O-O-O
{[%clk 0:01:08.1]} 18... Ne5 {[%clk 0:02:04.6]} 19. Nb3 {[%clk 0:00:58.9]} 19...
a4 {[%clk 0:01:36.4]} 20. Nd4 {[%clk 0:00:46.5]} 20... Rdc8 {[%clk 0:01:28.5]}
21. Nf5 {[%clk 0:00:31.1]} 21... Kf8 {[%clk 0:01:22.1]} 22. Nd6 {[%clk
0:00:27.9]} 22... Rc6 {[%clk 0:01:13.5]} 23. Rd4 {[%clk 0:00:24.3]} 23... Nfg4
{[%clk 0:00:59.8]} 24. Kd2 {[%clk 0:00:22.2]} 24... Nxh2 {[%clk 0:00:57.5]} 25.
Rf4 {[%clk 0:00:19.4]} 25... h5 {[%clk 0:00:50.1]} 26. Ndxe4 {[%clk 0:00:19.4]}
26... Bxe4 {[%clk 0:00:41.8]} 27. Rdxe4 {[%clk 0:00:17.7]} 27... Nhg4 {[%clk
0:00:36.3]} 28. Nd5 {[%clk 0:00:16.3]} 28... Rd8 {[%clk 0:00:32.7]} 29. Rf5
{[%clk 0:00:15]} 29... g6 {[%clk 0:00:19.3]} 30. Rff4 {[%clk 0:00:15.2]} 30...
Nxc4+ {[%clk 0:00:17]} 31. Rxc4 {[%clk 0:00:14]} 31... Rxd5+ {[%clk 0:00:16]}
32. Rcd4 {[%clk 0:00:13.7]} 32... Rdc5 {[%clk 0:00:12.8]} 33. Rxa4 {[%clk
0:00:12.4]} 33... Rc2+ {[%clk 0:00:12.1]} 34. Ke1 {[%clk 0:00:12.5]} 34... Nxe3
{[%clk 0:00:11.6]} 35. Rae4 {[%clk 0:00:08.6]} 35... Nxg2+ {[%clk 0:00:10.9]}
36. Kf2 {[%clk 0:00:08.8]} 36... Nxf4 {[%clk 0:00:11.8]} 37. Rxf4 {[%clk
0:00:08.9]} 37... Kg7 {[%clk 0:00:11]} 38. Kf3 {[%clk 0:00:07.3]} 38... Rf6
{[%clk 0:00:10.1]} 39. Rxf6 {[%clk 0:00:06.8]} 39... Kxf6 {[%clk 0:00:11]} 40.
b4 {[%clk 0:00:07]} 40... Rc3+ {[%clk 0:00:11.1]} 0-1

[Event "*** SCC Grand Prix: Titled Tuesday Blitz"]
[Site "Chess.com"]
[Date "2020.10.13"]
[Round "4"]
[White "Ariadna_Atreides"]
[Black "UmarovSabir"]
[Result "0-1"]
[WhiteElo "2028"]
[BlackElo "2373"]
[TimeControl "180+1"]
[EndTime "10:39:43 PDT"]
[Termination "UmarovSabir won by resignation"]

1. d4 {[%clk 0:03:00.9]} 1... g6 {[%clk 0:02:59.7]} 2. Nf3 {[%clk 0:03:00.2]}
2... Bg7 {[%clk 0:02:59.5]} 3. c3 {[%clk 0:02:57.2]} 3... d5 {[%clk 0:02:57.1]}
4. Bf4 {[%clk 0:02:54]} 4... Nf6 {[%clk 0:02:56.7]} 5. h3 {[%clk 0:02:53.8]}
5... O-O {[%clk 0:02:56.4]} 6. e3 {[%clk 0:02:53.6]} 6... Ne4 {[%clk 0:02:50.1]}
7. Nbd2 {[%clk 0:02:51.3]} 7... f5 {[%clk 0:02:46.5]} 8. Bd3 {[%clk 0:02:44.2]}
8... c5 {[%clk 0:02:43.3]} 9. Ne5 {[%clk 0:02:33.2]} 9... c4 {[%clk 0:02:39.1]}
10. Bc2 {[%clk 0:02:31]} 10... Nc6 {[%clk 0:02:31.1]} 11. h4 {[%clk 0:02:21.4]}
11... Nxe5 {[%clk 0:02:25.3]} 12. Bxe5 {[%clk 0:02:21.1]} 12... Bxe5 {[%clk
0:02:24.4]} 13. dxe5 {[%clk 0:02:20.4]} 13... Qc7 {[%clk 0:02:16.2]} 14. Nf3
{[%clk 0:02:06.6]} 14... Qb6 {[%clk 0:02:03.5]} 15. Qc1 {[%clk 0:00:50.2]} 15...
f4 {[%clk 0:01:32.8]} 16. Bxe4 {[%clk 0:00:24.8]} 16... dxe4 {[%clk 0:01:31.8]}
17. Ng5 {[%clk 0:00:25.2]} 17... f3 {[%clk 0:01:02.2]} 18. gxf3 {[%clk
0:00:20.9]} 18... exf3 {[%clk 0:01:01.7]} 19. h5 {[%clk 0:00:17.8]} 19... h6
{[%clk 0:00:59.9]} 20. Ne4 {[%clk 0:00:14.2]} 20... g5 {[%clk 0:00:53.4]} 21.
Ng3 {[%clk 0:00:13.4]} 21... Bf5 {[%clk 0:00:46.2]} 22. Nxf5 {[%clk 0:00:12.5]}
22... Rxf5 {[%clk 0:00:47.1]} 23. Qc2 {[%clk 0:00:11.5]} 23... Rxe5 {[%clk
0:00:45.5]} 24. O-O-O {[%clk 0:00:11.9]} 24... Re6 {[%clk 0:00:37]} 25. Rd4
{[%clk 0:00:11.1]} 25... Rd6 {[%clk 0:00:33.5]} 26. Rhd1 {[%clk 0:00:09.7]}
26... Rad8 {[%clk 0:00:33.8]} 27. Qf5 {[%clk 0:00:07]} 27... Rxd4 {[%clk
0:00:31.6]} 28. exd4 {[%clk 0:00:05.6]} 28... Qf6 {[%clk 0:00:29.5]} 29. Qxf6
{[%clk 0:00:04.5]} 29... exf6 {[%clk 0:00:29.6]} 30. Re1 {[%clk 0:00:05.1]}
30... Kf7 {[%clk 0:00:29.7]} 31. Re3 {[%clk 0:00:05.2]} 31... g4 {[%clk
0:00:29.9]} 32. Re4 {[%clk 0:00:04.9]} 32... f5 {[%clk 0:00:30]} 33. Re5 {[%clk
0:00:05.1]} 33... Kf6 {[%clk 0:00:27.8]} 34. Kd2 {[%clk 0:00:05.5]} 34... Rd6
{[%clk 0:00:21]} 35. Rc5 {[%clk 0:00:05]} 35... Re6 {[%clk 0:00:20.2]} 36. Rxc4
{[%clk 0:00:04.6]} 36... Re2+ {[%clk 0:00:19.9]} 37. Kd3 {[%clk 0:00:04.9]}
37... Rxf2 {[%clk 0:00:20]} 38. Rc7 {[%clk 0:00:03.8]} 38... Rxb2 {[%clk
0:00:19.6]} 39. Rh7 {[%clk 0:00:03.5]} 39... f2 {[%clk 0:00:19.4]} 40. Rxh6+
{[%clk 0:00:03]} 40... Kg5 {[%clk 0:00:19]} 41. Rg6+ {[%clk 0:00:03.2]} 41...
Kxh5 {[%clk 0:00:19.1]} 0-1